{"text_format":"1","workbook":"xlsx","n_sheets":5,"sheets":["Starttider","Resultat","Tilmelding","Tilmelding (2)","Tilmelding (3)"],"not_rendered":{"charts":0,"images":0,"macros":0,"external_links":0,"defined_names":0,"comments":0,"pivot_tables":0},"unopened":[],"bounds":{"document_bytes":16777216,"sheet_cells":100000,"rows_first":2000,"rows_last":500,"rows_between":2000,"halvings":0,"cell_chars":16384,"cell_head_chars":4096},"cells_cut":0,"cells_raw":0,"read":"whole","date_system":"1900"}

{"sheet":"Starttider","index":0,"n_rows":62,"n_cols":5,"rows_kept":62,"cut":false,"hidden":false,"merged":[[1,2,1,4]]}
[null,null,"Mandagsklubben ","vs","Torsdagherrerne"]
[null,null,"Mandag den 26 juni 2023"]
[null,"1. Bold kl. 15.36"]
[null,"1.1","Per Bloch Jensen","vs","Torben Wolf"]
[null,"1.2","Jesper Nielsen","vs","Carsten Sussemiehl"]
[]
[null,"2. Bold kl. 15.44"]
[null,"2.1","Martin Hejbøl","vs","Jimmy Madsen"]
[null,"2.2","Brian Jakobsen","vs","Thomas Osmund"]
[]
[null,"3. Bold kl. 15.52"]
[null,"3.1","Allan Johansen","vs","That Oo"]
[null,"3.2","Lars Thue Jensen","vs","Heine Madsen"]
[]
[null,"4. Bold kl. 16.00"]
[null,"4.1","Jesper Hartvigsen","vs","Jørgen Husted"]
[null,"4.2","Allan Skydt","vs","Vagn Bolding"]
[]
[null,"5. Bold kl. 16.08"]
[null,"5.1","Hans-Anton Sørensen","vs","Christoffer Strandgaard"]
[null,"5.2","Mogens Pedersen","vs","Toim Percival"]
[]
[null,"6. Bold kl. 16.16"]
[null,"6.1","Hans Martinsen","vs","Kurt Vestergård"]
[null,"6.2","Per Wittendorf","vs","Kaj Kristensen"]
[]
[null,"7. Bold kl. 16.24"]
[null,"7.1","Carsten K Thøgersen","vs","Lars Torbensen"]
[null,"7.2","John Hansen","vs","Per Kongsbak"]
[]
[null,"8. Bold kl. 16.32"]
[null,"8.1","Martin Bjerrum","vs","Michael K Hansen"]
[null,"8.2","Tom Olesen","vs","Klaus P Rasmussen"]
[]
[null,"9. Bold kl. 16.40"]
[null,"9.1","Kurt Feddersen","vs","Jørgen Bargisen"]
[null,"9.2","Morten  Hartvigsen","vs","Jimmy Uldbæk"]
[]
[null,"10. Bold kl. 16.48"]
[null,"10.1","Claus Skov Hansen","vs","Per Svenningsen"]
[null,"10.2","Søren Villadsen","vs","Christian Husted"]
[]
[null,"11. Bold kl. 16.56"]
[null,"11.1","Henrik Klavsen","vs","Bjørn B. Lauritzen"]
[null,"11.2","Arne Madsen","vs","Klaus Mortensen"]
[]
[null,"12. Bold kl. 17.04"]
[null,"12.1","Leo Brok","vs","Klaus Rasmussen"]
[null,"12.2","Rene Christiansen","vs","Martin Jensen"]
[]
[null,"13. Bold kl. 17.12"]
[null,"13.1","Oluf Kristiansen","vs","Jan Hansen"]
[null,"13.2","Kenneth Ottosen","vs","Søren Persson"]
[]
[null,"14. Bold kl. 17.20"]
[null,"14.1","Flemming Lillelund","vs","Lars Lasgaard"]
[null,"14.2","Daniel Jensen","vs","Ove Nielsen"]
[]
[null,"15. Bold kl. 17.28"]
[null,"15.1","Michael G Madsen","vs","Bo Søborg "]
[null,"15.2","Allan Pedersen","vs","Kristian Sørensen"]
[null,"I må selv afstemme antal slag med modspilleren"]

{"sheet":"Resultat","index":1,"n_rows":36,"n_cols":5,"rows_kept":36,"cut":false,"hidden":false,"merged":[[1,1,1,3],[31,1,31,3],[34,1,34,3]]}
[null,"Mandagsklubben ","vs","Torsdagherrerne"]
[null,"Mandag den 26 juni 2023"]
[]
[null,{"$f":"+Starttider!C4","v":"Per Bloch Jensen"},"vs",{"$f":"+Starttider!E4","v":"Torben Wolf"},"0-0"]
[null,{"$f":"+Starttider!C5","v":"Jesper Nielsen"},"vs",{"$f":"+Starttider!E5","v":"Carsten Sussemiehl"},"1-2"]
[null,{"$f":"+Starttider!C8","v":"Martin Hejbøl"},"vs",{"$f":"+Starttider!E8","v":"Jimmy Madsen"},"2-1"]
[null,{"$f":"+Starttider!C9","v":"Brian Jakobsen"},"vs",{"$f":"+Starttider!E9","v":"Thomas Osmund"},"2-3"]
[null,{"$f":"+Starttider!C12","v":"Allan Johansen"},"vs",{"$f":"+Starttider!E12","v":"That Oo"},"1-0"]
[null,{"$f":"+Starttider!C13","v":"Lars Thue Jensen"},"vs",{"$f":"+Starttider!E13","v":"Heine Madsen"},"1-3"]
[null,{"$f":"+Starttider!C16","v":"Jesper Hartvigsen"},"vs",{"$f":"+Starttider!E16","v":"Jørgen Husted"},"6-4"]
[null,{"$f":"+Starttider!C17","v":"Allan Skydt"},"vs",{"$f":"+Starttider!E17","v":"Vagn Bolding"},"7-8"]
[null,{"$f":"+Starttider!C20","v":"Hans-Anton Sørensen"},"vs",{"$f":"+Starttider!E20","v":"Christoffer Strandgaard"},"2-0"]
[null,{"$f":"+Starttider!C21","v":"Mogens Pedersen"},"vs",{"$f":"+Starttider!E21","v":"Toim Percival"},"2-0"]
[null,{"$f":"+Starttider!C24","v":"Hans Martinsen"},"vs",{"$f":"+Starttider!E24","v":"Kurt Vestergård"},"4-3"]
[null,{"$f":"+Starttider!C25","v":"Per Wittendorf"},"vs",{"$f":"+Starttider!E25","v":"Kaj Kristensen"},"0-1"]
[null,{"$f":"+Starttider!C28","v":"Carsten K Thøgersen"},"vs",{"$f":"+Starttider!E28","v":"Lars Torbensen"},"0-1"]
[null,{"$f":"+Starttider!C29","v":"John Hansen"},"vs",{"$f":"+Starttider!E29","v":"Per Kongsbak"},"3-2"]
[null,{"$f":"+Starttider!C32","v":"Martin Bjerrum"},"vs",{"$f":"+Starttider!E32","v":"Michael K Hansen"},"2-1"]
[null,{"$f":"+Starttider!C33","v":"Tom Olesen"},"vs",{"$f":"+Starttider!E33","v":"Klaus P Rasmussen"},"6-7"]
[null,{"$f":"+Starttider!C36","v":"Kurt Feddersen"},"vs",{"$f":"+Starttider!E36","v":"Jørgen Bargisen"},"4-5"]
[null,{"$f":"+Starttider!C37","v":"Morten  Hartvigsen"},"vs",{"$f":"+Starttider!E37","v":"Jimmy Uldbæk"},"3-5"]
[null,{"$f":"+Starttider!C40","v":"Claus Skov Hansen"},"vs",{"$f":"+Starttider!E40","v":"Per Svenningsen"},"2-3"]
[null,{"$f":"+Starttider!C41","v":"Søren Villadsen"},"vs",{"$f":"+Starttider!E41","v":"Christian Husted"},"2-4"]
[null,{"$f":"+Starttider!C48","v":"Leo Brok"},"vs",{"$f":"+Starttider!E48","v":"Klaus Rasmussen"},"1-2"]
[null,{"$f":"+Starttider!C49","v":"Rene Christiansen"},"vs",{"$f":"+Starttider!E49","v":"Martin Jensen"},"0-1"]
[null,{"$f":"+Starttider!C52","v":"Oluf Kristiansen"},"vs",{"$f":"+Starttider!E52","v":"Jan Hansen"},"2-1"]
[null,{"$f":"+Starttider!C53","v":"Kenneth Ottosen"},"vs",{"$f":"+Starttider!E53","v":"Søren Persson"},"0-0"]
[null,{"$f":"+Starttider!C56","v":"Flemming Lillelund"},"vs",{"$f":"+Starttider!E56","v":"Lars Lasgaard"},"2-1"]
[null,{"$f":"+Starttider!C57","v":"Daniel Jensen"},"vs",{"$f":"+Starttider!E57","v":"Ove Nielsen"},"5-3"]
[null,{"$f":"+Starttider!C60","v":"Michael G Madsen"},"vs",{"$f":"+Starttider!E60","v":"Bo Søborg "},"1-2"]
[null,{"$f":"+Starttider!C61","v":"Allan Pedersen"},"vs",{"$f":"+Starttider!E61","v":"Kristian Sørensen"},"6-7"]
[null,"Mandagsherrer vs Mandagsherrer"]
[null,{"$f":"+Starttider!C44","v":"Henrik Klavsen"},"vs",{"$f":"+Starttider!E44","v":"Bjørn B. Lauritzen"},"5-3"]
[null,{"$f":"+Starttider!C45","v":"Arne Madsen"},"vs",{"$f":"+Starttider!E45","v":"Klaus Mortensen"},"4-3"]
[null,"Slutresultat 2023"]
[null,"12",null,"16"]

{"sheet":"Tilmelding","index":2,"n_rows":36,"n_cols":8,"rows_kept":36,"cut":false,"hidden":false,"merged":[]}
[null,"Mandagsklub",null,null,"Torsdagherrerne"]
[null,null,null,null,null,null,null,"Holdet"]
[null,"Martin Bjerrum",1,null,"MichaelK Hansen",4.4000000000000004,"efter kl 16","Efter kl 16"]
[null,"Martin Hejbøl",6.3,null,"Jimmy Madsen",6.4]
[null,"Brian Jakobsen",10.8,null,"Thomas Osmund",7.1]
[null,"Kenneth Ottosen",11,"sen","Søren Persson",10.7,null,"sen"]
[null,"Per Bloch Jensen",11.5,null,"Torben Wolf",10.9]
[null,"Leo Brok",12.5,"sen","Klaus Rasmussen",11.6,null,"sen"]
[null,"Rene Christiansen",13,"sen","Martin Jensen",12.4,"efter kl 16","Efter kl 16"]
[null,"Allan Johansen",14.8,null,"That Oo",13.1]
[null,"Jesper Nielsen",15.5,null,"Carsten Sussemiehl",13.8]
[null,"Kurt Feddersen",16,"sen ","Jørgen Bargisen",13.9,"efter kl 16","sen/efter kl 16"]
[null,"Lars Thue Jensen",16,null,"Heine Madsen",14.1]
[null,"Jesper Hartvigsen",16.899999999999999]
[null,"Allan Skydt",16.899999999999999,null,"Jørgen Husted",17.899999999999999]
[null,"Carsten K Thøgersen",17,null,"Vagn Bolding",18.3]
[null,"Morten  Hartvigsen",17.7,"gerne mod jimmy","Jimmy Uldbæk",18.7,"Sen start ","sen"]
[null,"Hans-Anton Sørensen",17.8,null,"Lars Torbensen",18.899999999999999]
[null,"Michael G Madsen",18.8,null,"Shristoffer Strandgaard",18.899999999999999]
[null,"Allan Pedersen",18.8,"sen","Bo Søborg ",19.5,null,"sen"]
[null,"Søren Villadsen",19.5,"sen","Kristian Sørensen",23.3,null,"sen"]
[null,"Mogens Pedersen",19.7,null,"Christian Husted",24.4]
[null,"Flemming Lillelund",20.6,null,"Toim Percival",24.7]
[null,"Daniel Jensen",22.4,"Tidligst 1620","Lars Lasgaard",25.6,"Sen start ","sen/tidligst efter kl 16.20"]
[null,"Per Wittendorf",22.6,null,"Ove Nielsen",25.9,"tidlig","tidlig"]
[null,"Tom Olesen",23.6,null,"Kaj Kristensen",26.5]
[null,"Claus Skov Hansen",24.3,"tidligst kl 16","Klaus P Rasmussen",29.1,null,"Tidligst kl 16"]
[null,"John Hansen",24.7,null,"Per Svenningsen",29.9]
[null,"Oluf Kristiansen",26.4,null,"Per Kongsbak",30.5]
[null,"Klaus Mortensen",26.7,"sen","Jan Hansen",30.8,null,"sen"]
[null,"Hans Martinsen",26.8,null,"Kurt Vestergård",34]
[null,"Henrik Klavsen",26.8,"efter 1615",null,null,null,"Efter kl 1615"]
[null,"Arne Madsen",28.5]
[]
[]
[null,"Bjørn B. Lauritzen",20.100000000000001]

{"sheet":"Tilmelding (2)","index":3,"n_rows":35,"n_cols":8,"rows_kept":35,"cut":false,"hidden":false,"merged":[]}
[null,"Mandagsklub",null,null,"Torsdagherrerne"]
[null,null,null,null,null,null,null,"Holdet"]
[null,"Martin Bjerrum",1,null,"MichaelK Hansen",4.4000000000000004,"efter kl 16","Efter kl 16"]
[null,"Martin Hejbøl",6.3,null,"Jimmy Madsen",6.4]
[null,"Brian Jakobsen",10.8,null,"Thomas Osmund",7.1]
[null,"Kenneth Ottosen",11,"sen","Søren Persson",10.7,null,"sen"]
[null,"Per Bloch Jensen",11.5,null,"Torben Wolf",10.9]
[null,"Leo Brok",12.5,"sen","Klaus Rasmussen",11.6,null,"sen"]
[null,"Rene Christiansen",13,"sen","Martin Jensen",12.4,"efter kl 16","Efter kl 16"]
[null,"Allan Johansen",14.8,null,"That Oo",13.1]
[null,"Jesper Nielsen",15.5,null,"Carsten Sussemiehl",13.8]
[null,"Kurt Feddersen",16,"sen ","Jørgen Bargisen",13.9,"efter kl 16","sen/efter kl 16"]
[null,"Lars Thue Jensen",16,null,"Heine Madsen",14.1]
[null,"Jesper Hartvigsen",16.899999999999999,null,"Jørgen Husted",17.899999999999999]
[null,"Allan Skydt",16.899999999999999,null,"Vagn Bolding",18.3]
[null,"Carsten K Thøgersen",17,null,"Jimmy Uldbæk",18.7,"Sen start ","sen"]
[null,"Morten  Hartvigsen",17.7,"gerne mod jimmy","Lars Torbensen",18.899999999999999]
[null,"Hans-Anton Sørensen",17.8,null,"Shristoffer Strandgaard",18.899999999999999]
[null,"Michael G Madsen",18.8,null,"Bo Søborg ",19.5,null,"sen"]
[null,"Allan Pedersen",18.8,"sen","Kristian Sørensen",23.3,null,"sen"]
[null,"Søren Villadsen",19.5,"sen","Christian Husted",24.4]
[null,"Mogens Pedersen",19.7,null,"Toim Percival",24.7]
[null,"Flemming Lillelund",20.6,null,"Lars Lasgaard",25.6,"Sen start ","sen/tidligst efter kl 16.20"]
[null,"Daniel Jensen",22.4,"Tidligst 1620","Ove Nielsen",25.9,"tidlig","tidlig"]
[null,"Per Wittendorf",22.6,null,"Kaj Kristensen",26.5]
[null,"Tom Olesen",23.6,null,"Klaus P Rasmussen",29.1,null,"Tidligst kl 16"]
[null,"Claus Skov Hansen",24.3,"tidligst kl 16","Per Svenningsen",29.9]
[null,"John Hansen",24.7,null,"Per Kongsbak",30.5]
[null,"Oluf Kristiansen",26.4,null,"Jan Hansen",30.8,null,"sen"]
[null,"Hans Martinsen",26.8,null,"Kurt Vestergård",34]
[]
[null,"Henrik Klavsen",26.8,"efter 1615"]
[null,"Arne Madsen",28.5]
[null,"Bjørn B. Lauritzen",20.100000000000001]
[null,"Klaus Mortensen",26.7,"sen"]

{"sheet":"Tilmelding (3)","index":4,"n_rows":35,"n_cols":4,"rows_kept":35,"cut":false,"hidden":false,"merged":[]}
[null,"Mandagsklub","Torsdagherrerne"]
[null,null,null,"Holdet"]
[null,"Martin Bjerrum","MichaelK Hansen","Efter kl 16"]
[null,"Martin Hejbøl","Jimmy Madsen"]
[null,"Brian Jakobsen","Thomas Osmund"]
[null,"Kenneth Ottosen","Søren Persson","sen"]
[null,"Per Bloch Jensen","Torben Wolf"]
[null,"Leo Brok","Klaus Rasmussen","sen"]
[null,"Rene Christiansen","Martin Jensen","Efter kl 16"]
[null,"Allan Johansen","That Oo"]
[null,"Jesper Nielsen","Carsten Sussemiehl"]
[null,"Kurt Feddersen","Jørgen Bargisen","sen/efter kl 16"]
[null,"Lars Thue Jensen","Heine Madsen"]
[null,"Jesper Hartvigsen","Jørgen Husted"]
[null,"Allan Skydt","Vagn Bolding"]
[null,"Carsten K Thøgersen","Jimmy Uldbæk","sen"]
[null,"Morten  Hartvigsen","Lars Torbensen"]
[null,"Hans-Anton Sørensen","Shristoffer Strandgaard"]
[null,"Michael G Madsen","Bo Søborg ","sen"]
[null,"Allan Pedersen","Kristian Sørensen","sen"]
[null,"Søren Villadsen","Christian Husted"]
[null,"Mogens Pedersen","Toim Percival"]
[null,"Flemming Lillelund","Lars Lasgaard","sen/tidligst efter kl 16.20"]
[null,"Daniel Jensen","Ove Nielsen","tidlig"]
[null,"Per Wittendorf","Kaj Kristensen"]
[null,"Tom Olesen","Klaus P Rasmussen","Tidligst kl 16"]
[null,"Claus Skov Hansen","Per Svenningsen"]
[null,"John Hansen","Per Kongsbak"]
[null,"Oluf Kristiansen","Jan Hansen","sen"]
[null,"Hans Martinsen","Kurt Vestergård"]
[null,null,null,"Efter kl 1615"]
[null,"Henrik Klavsen"]
[null,"Arne Madsen"]
[null,"Bjørn B. Lauritzen"]
[null,"Klaus Mortensen"]